bitfinex/quotes_BTCUSD_20241023
["timestamp","ask_amount","ask_price","bid_price","bid_amount"]
[1729686452566,0.19758643,66291.0,66290.0,0.000823]
[1729686452797,0.152498,66291.0,66290.0,0.000823]
[1729686454036,0.001648,66291.0,66290.0,0.000823]
[1729686454264,0.152498,66291.0,66290.0,0.000823]
[1729686455187,0.19758518,66291.0,66290.0,0.000823]
[1729686456093,0.19758518,66291.0,66290.0,0.000823]
[1729686456342,0.152498,66291.0,66290.0,0.000823]
[1729686457584,0.150852,66290.0,66285.0,0.150861]
[1729686457822,0.303349,66291.0,66285.0,0.30136481]
[1729686457823,0.150855,66289.0,66285.0,0.30136481]
[1729686458506,0.303349,66291.0,66285.0,0.15050381]
[1729686458771,0.301704,66290.0,66285.0,0.30136681]
[1729686458998,0.150855,66289.0,66285.0,0.30136681]
[1729686459444,0.150857,66288.0,66285.0,0.15050381]
[1729686459663,0.150857,66288.0,66285.0,0.30136681]
[1729686460145,0.301704,66290.0,66285.0,0.30136681]
[1729686460368,0.150855,66289.0,66285.0,0.30136681]
[1729686461272,0.301704,66290.0,66285.0,0.30136681]
[1729686461493,0.15086,66287.0,66285.0,0.15050381]
[1729686461950,0.150858,66288.0,66285.0,0.15050381]
[1729686462178,0.150858,66288.0,66285.0,0.30136481]
[1729686463315,0.150858,66288.0,66285.0,0.15050381]
[1729686463769,0.301713,66288.0,66283.0,0.04140803]
[1729686463994,0.301718,66287.0,66283.0,0.04140803]
[1729686464204,0.150863,66286.0,66283.0,0.04140803]
[1729686465748,0.452571,66288.0,66283.0,0.19227503]
[1729686465965,0.150859,66287.0,66283.0,0.19227503]
[1729686466167,0.19593818,66288.0,66284.0,0.150865]
[1729686466379,0.04508118,66288.0,66283.0,0.04140803]
[1729686466597,0.04508118,66288.0,66284.0,0.301731]
[1729686466920,0.19594018,66288.0,66284.0,0.150865]
[1729686467142,0.150859,66287.0,66283.0,0.19227503]
[1729686467594,0.04508118,66288.0,66284.0,0.150864]
[1729686467834,0.19594018,66288.0,66284.0,0.150864]
[1729686468286,0.150859,66287.0,66283.0,0.19227503]
[1729686468791,0.150859,66287.0,66284.0,0.150865]
[1729686470782,0.150857,66288.0,66284.0,0.150865]
[1729686471023,0.04507735,66287.0,66284.0,0.150865]
[1729686471508,0.19593635,66287.0,66284.0,0.150865]
[1729686471986,0.04507735,66287.0,66284.0,0.150865]
[1729686472459,0.04507735,66287.0,66283.0,0.04140803]
[1729686472699,0.04507677,66287.0,66283.0,0.19227403]
[1729686472966,0.005,66269.0,66267.0,0.04522673]
[1729686473243,0.005,66269.0,66244.0,0.0904643]
[1729686473244,0.005,66261.0,66244.0,0.0904643]
[1729686473488,0.156007,66222.0,66221.0,0.09048538]
[1729686473737,0.256014,66219.0,66218.0,0.0009067]
[1729686474019,0.27006348,66219.0,66218.0,0.0009067]
[1729686474527,0.33744873,66219.0,66218.0,0.0009067]
[1729686474766,0.27006348,66219.0,66218.0,0.0009067]
[1729686474993,0.27006348,66219.0,66207.0,0.22606022]
[1729686474994,0.105,66215.0,66207.0,0.22606022]
[1729686475223,0.1,66213.0,66208.0,0.00302045]
[1729686475455,0.1,66213.0,66209.0,0.00302039]
[1729686475683,0.1,66213.0,66207.0,0.22606022]
[1729686475906,0.251027,66213.0,66207.0,0.22606022]
[1729686476197,0.1,66213.0,66207.0,0.22606022]
[1729686476424,0.105,66213.0,66207.0,0.22606022]
[1729686476648,0.256027,66213.0,66207.0,0.22606022]
[1729686476870,0.251027,66213.0,66207.0,0.22606022]
[1729686477313,0.256027,66213.0,66207.0,0.22606022]
[1729686477806,0.251027,66213.0,66207.0,0.22606022]
[1729686478030,0.005,66216.0,66212.0,0.1521599]
[1729686478266,0.02782569,66227.0,66214.0,0.005]
[1729686478480,0.17532614,66229.0,66215.0,0.15352359]
[1729686478481,0.151001,66225.0,66215.0,0.15352359]
[1729686478738,0.301961,66234.0,66221.0,0.005]
[1729686478966,0.301907,66246.0,66222.0,0.15050381]
[1729686478967,0.005,66229.0,66222.0,0.15050381]
[1729686479188,0.150998,66227.0,66222.0,0.15050381]
[1729686479407,0.03280932,66229.0,66222.0,0.15050381]
[1729686479627,0.150996,66227.0,66223.0,0.22606022]
[1729686479843,0.01890466,66229.0,66224.0,0.15050381]
[1729686479844,0.151002,66225.0,66224.0,0.15050381]
[1729686481419,0.178795,66227.0,66224.0,0.15050381]
[1729686481691,0.02778804,66229.0,66225.0,0.22606022]
[1729686481906,0.30198,66230.0,66226.0,0.15050381]
[1729686482126,0.150995,66227.0,66226.0,0.15050381]
[1729686483303,0.45298,66228.0,66222.0,0.01]
[1729686483545,0.151003,66224.0,66223.0,0.37656403]
[1729686484254,0.302,66226.0,66223.0,0.15050381]
[1729686484476,0.151002,66224.0,66223.0,0.15050381]
[1729686484926,0.151002,66224.0,66223.0,0.000823]
[1729686486940,0.17463449,66224.0,66223.0,0.000823]
[1729686491220,0.18851821,66224.0,66223.0,0.000823]
[1729686491450,0.17463449,66224.0,66223.0,0.000823]
[1729686491684,0.02363249,66224.0,66223.0,0.15132681]
[1729686491896,0.02363249,66224.0,66223.0,0.18801162]
[1729686492129,0.02363249,66224.0,66223.0,0.3678921]
[1729686494167,0.02779152,66234.0,66228.0,0.005]
[1729686494453,0.301921,66243.0,66224.0,0.37636751]
[1729686494454,0.22606022,66248.0,66242.0,0.005]
[1729686494676,0.22606022,66248.0,66247.0,0.005]
[1729686494904,0.22606022,66248.0,66247.0,0.18032614]
[1729686495153,0.22606022,66248.0,66234.0,0.1775]
[1729686495387,0.3019,66247.0,66234.0,0.1675]
[1729686495618,0.005,66252.0,66234.0,0.1675]
[1729686495619,0.150967,66240.0,66234.0,0.31800381]
[1729686495846,0.17532614,66245.0,66224.0,0.45766751]
[1729686496076,0.150972,66238.0,66230.0,0.17532614]
[1729686496308,0.22606022,66244.0,66230.0,0.17532614]
[1729686496528,0.22606022,66244.0,66231.0,0.00301924]
[1729686496529,0.150969,66239.0,66231.0,0.00301924]
[1729686496747,0.22606022,66244.0,66231.0,0.15050381]
[1729686497016,0.150967,66240.0,66231.0,0.15050381]
[1729686497278,0.02227285,66243.0,66231.0,0.15050381]
[1729686497505,0.150968,66240.0,66231.0,0.15050381]
[1729686497738,0.150968,66239.0,66231.0,0.15050381]
[1729686498624,0.3242429,66242.0,66226.0,0.150996]
[1729686498625,0.150976,66236.0,66226.0,0.17532614]
[1729686498860,0.151,66225.0,66224.0,0.37636751]
[1729686499086,0.256,66225.0,66224.0,0.37636751]
[1729686499762,0.2783351,66225.0,66224.0,0.37636751]
[1729686499989,0.29566941,66225.0,66224.0,0.37636751]
[1729686500213,0.04466941,66225.0,66224.0,0.37636751]
[1729686500428,0.1733351,66225.0,66224.0,0.37636751]
[1729686500653,0.0223351,66225.0,66224.0,0.37636751]
[1729686500863,0.1733351,66225.0,66224.0,0.37636751]
[1729686501103,0.0223351,66225.0,66224.0,0.37636751]
[1729686501339,0.04466941,66225.0,66224.0,0.37636751]
[1729686501792,0.05586494,66225.0,66224.0,0.37636751]
[1729686502022,0.04466941,66225.0,66224.0,0.37636751]
[1729686502494,0.150993,66229.0,66224.0,0.37636751]
[1729686502722,0.04486426,66225.0,66224.0,0.37636751]
[1729686502949,0.0224321,66225.0,66224.0,0.37636751]
[1729686503177,0.04486423,66225.0,66224.0,0.37636751]
[1729686503394,0.04486423,66225.0,66224.0,0.92355213]
[1729686503621,0.04486423,66225.0,66224.0,0.85319946]
[1729686503831,0.04486423,66225.0,66224.0,0.70219746]
[1729686504053,0.04486423,66225.0,66224.0,0.37636751]
[1729686504274,0.05609115,66225.0,66224.0,0.37636751]
[1729686504492,0.20709115,66225.0,66224.0,0.37636751]
[1729686505009,0.05609115,66225.0,66224.0,0.37636751]
[1729686505237,0.48741729,66225.0,66224.0,0.34236792]
[1729686505447,0.31209115,66225.0,66224.0,0.34236792]
[1729686506129,0.2896799,66225.0,66224.0,0.34236792]
[1729686506357,0.34019961,66225.0,66224.0,0.34236792]
[1729686506579,0.32897298,66225.0,66224.0,0.34236792]
[1729686507244,0.30651971,66225.0,66224.0,0.33736792]
[1729686509523,0.29249651,66225.0,66224.0,0.33736792]
[1729686509747,0.30653363,66225.0,66224.0,0.33736792]
[1729686509987,0.30653363,66225.0,66224.0,0.33819192]
[1729686510907,50.09313622,66224.0,66223.0,0.000823]
[1729686511128,0.151023,66215.0,66214.0,0.000824]
[1729686511352,0.20155663,66215.0,66214.0,0.000824]
[1729686512735,0.151023,66215.0,66214.0,0.000824]
[1729686512950,0.20151254,66215.0,66214.0,0.000824]
[1729686513382,0.18748254,66215.0,66214.0,0.000824]
[1729686513601,0.20150526,66215.0,66214.0,0.000824]
[1729686516463,0.151032,66211.0,66210.0,0.00077506]
[1729686516689,0.05046573,66211.0,66203.0,0.26180382]
[1729686516911,0.151037,66209.0,66204.0,0.30155181]
[1729686517125,0.151044,66206.0,66204.0,0.15050381]
[1729686517344,0.03644301,66205.0,66204.0,0.15050381]
[1729686518025,0.03644301,66205.0,66204.0,0.3095724]
[1729686518248,0.01401654,66205.0,66204.0,0.48687795]
[1729686518465,0.01401654,66205.0,66204.0,0.63738176]
[1729686518900,0.01401654,66205.0,66204.0,0.63938176]
[1729686519127,0.01401654,66205.0,66204.0,0.81548176]
[1729686519389,0.02242446,66215.0,66214.0,0.156024]
[1729686519605,0.03643979,66215.0,66214.0,0.38254291]
[1729686520329,0.04476269,66217.0,66216.0,0.15602]
[1729686520562,0.05877798,66217.0,66216.0,0.30652381]
[1729686521015,0.01401529,66217.0,66216.0,0.30652381]
[1729686522247,0.01401529,66217.0,66216.0,0.65584995]
[1729686522468,0.01401529,66217.0,66216.0,0.79514705]
[1729686522686,0.27082291,66223.0,66220.0,0.307022]
[1729686522904,0.27082291,66223.0,66221.0,0.30151281]
[1729686522905,0.01401791,66222.0,66221.0,0.30151281]
[1729686523120,0.01401791,66222.0,66221.0,0.30851281]
[1729686523354,0.01401791,66222.0,66221.0,0.45701662]
[1729686523596,49.66180808,66224.0,66223.0,0.005]
[1729686523805,49.66180808,66224.0,66223.0,0.30650781]
[1729686524718,49.67582716,66224.0,66223.0,0.30650781]
[1729686525152,49.66180808,66224.0,66223.0,0.30650781]
[1729686525434,49.67583151,66224.0,66223.0,0.30650781]
[1729686525649,49.67583151,66224.0,66223.0,0.44331477]
[1729686526084,49.67583151,66224.0,66223.0,0.44531477]
[1729686526531,49.67583151,66224.0,66223.0,0.15050381]
[1729686526755,49.67583151,66224.0,66223.0,0.30650781]
[1729686527266,49.66180808,66224.0,66223.0,0.30650781]
[1729686527465,49.67583809,66224.0,66223.0,0.30650781]
[1729686528176,49.71233504,66224.0,66223.0,0.30650781]
[1729686528406,49.67583809,66224.0,66223.0,0.30650781]
[1729686532677,49.67583809,66224.0,66223.0,0.39806259]
[1729686534270,49.67584256,66224.0,66223.0,0.39806259]
[1729686534484,49.66180808,66224.0,66223.0,0.39806259]
[1729686535574,49.66345608,66224.0,66223.0,0.39806259]
[1729686536305,49.66345608,66224.0,66223.0,0.30650781]
[1729686540930,9.66345608,66224.0,66223.0,0.30650781]
[1729686542591,9.67749464,66224.0,66223.0,0.30650781]
[1729686543287,9.67749464,66224.0,66223.0,0.30850781]
[1729686543511,9.66345608,66224.0,66223.0,0.30850781]
[1729686543727,9.66345608,66224.0,66223.0,0.40026259]
[1729686544164,9.66345608,66224.0,66223.0,0.39826259]
[1729686549540,9.66345608,66224.0,66223.0,0.39326259]
[1729686549761,9.70000761,66224.0,66216.0,0.005]
[1729686549998,0.05061007,66223.0,66217.0,0.15050381]
[1729686550233,0.151018,66217.0,66216.0,0.15050381]
[1729686550454,0.02811806,66217.0,66216.0,0.15050381]
[1729686550678,0.20162807,66217.0,66216.0,0.15050381]
[1729686550947,0.20162807,66217.0,66211.0,0.01]
[1729686550948,0.02811629,66217.0,66212.0,0.01]
[1729686551169,0.02811629,66216.0,66213.0,0.30152981]
[1729686551401,0.02811629,66215.0,66213.0,0.45255581]
[1729686551637,0.01405775,66214.0,66213.0,0.30153081]
[1729686552543,0.01405775,66214.0,66213.0,0.15050381]
[1729686552759,0.01405775,66214.0,66213.0,0.30153081]
[1729686553195,0.01405775,66214.0,66213.0,0.35387211]
[1729686555428,0.03769076,66214.0,66213.0,0.35387211]
[1729686555644,0.03769076,66214.0,66213.0,0.30153081]
[1729686557200,0.03769076,66214.0,66213.0,0.24200571]
[1729686560146,0.03769076,66214.0,66213.0,0.24700571]
[1729686560147,0.02363301,66214.0,66213.0,0.24700571]
[1729686560366,0.04490024,66222.0,66221.0,0.151009]
[1729686560581,0.02363329,66221.0,66220.0,0.151011]
[1729686560812,0.03767488,66221.0,66220.0,0.151011]
[1729686561257,0.03767444,66221.0,66220.0,0.151011]
[1729686562867,0.03767444,66221.0,66217.0,0.302037]
[1729686563089,0.01404115,66220.0,66217.0,0.45254081]
[1729686563308,0.02363329,66221.0,66219.0,0.151014]
[1729686563754,0.01404389,66220.0,66219.0,0.151014]
[1729686564403,0.01404389,66220.0,66217.0,0.45254081]
[1729686564622,0.01404389,66219.0,66218.0,0.151016]
[1729686565265,0.01404389,66219.0,66217.0,0.15050381]
[1729686565482,0.02808504,66218.0,66217.0,0.15050381]
[1729686565701,0.01404389,66218.0,66217.0,0.15050381]
[1729686565910,0.02808504,66218.0,66217.0,0.30152181]
[1729686566117,0.01404389,66218.0,66217.0,0.30152181]
[1729686566394,0.02808504,66218.0,66217.0,0.30152181]
[1729686566606,0.01404389,66218.0,66217.0,0.30152181]
[1729686567045,0.02808504,66218.0,66217.0,0.30152181]
[1729686567263,0.01404389,66218.0,66217.0,0.30152181]
[1729686567451,0.02808504,66218.0,66217.0,0.30152181]
[1729686567909,0.02808504,66218.0,66215.0,0.151022]
[1729686568146,0.02808504,66218.0,66212.0,0.005]
[1729686568147,0.01404389,66218.0,66212.0,0.005]
[1729686568362,0.01404389,66217.0,66216.0,0.15102]
[1729686569212,0.0280903,66217.0,66216.0,0.15102]
[1729686572985,0.0280903,66217.0,66216.0,0.14602]
[1729686573412,15.0280903,66217.0,66216.0,0.14602]
[1729686575236,15.01405319,66217.0,66216.0,0.14602]
[1729686575451,15.02810638,66217.0,66216.0,0.14602]
[1729686576608,15.02310638,66217.0,66216.0,0.59840063]
[1729686576835,15.00905319,66217.0,66216.0,0.59840063]
[1729686577307,15.00905319,66217.0,66216.0,0.68110063]
[1729686577533,14.995,66217.0,66216.0,0.67910063]
[1729686577760,14.995,66217.0,66216.0,0.68110063]
[1729686578474,14.995,66217.0,66216.0,0.67910063]
[1729686580258,14.995,66217.0,66216.0,0.68110063]
[1729686583093,14.995,66217.0,66216.0,0.67910063]
[1729686583565,14.995,66217.0,66216.0,0.68110063]
[1729686585445,14.995,66217.0,66216.0,0.68192463]
[1729686585669,14.996648,66217.0,66216.0,0.68192463]
[1729686585902,14.99646624,66217.0,66216.0,0.68192463]
[1729686587073,14.99646624,66217.0,66216.0,0.67692463]
[1729686587291,14.99646624,66217.0,66216.0,0.68192463]
[1729686591249,14.99646624,66217.0,66216.0,0.88025077]
[1729686591482,14.99646624,66217.0,66216.0,0.80492463]
[1729686596452,14.99646624,66217.0,66216.0,0.74170886]
[1729686599147,0.001648,66217.0,66216.0,0.74170886]
[1729686600910,0.001648,66217.0,66216.0,0.73970886]
[1729686601145,0.001648,66217.0,66216.0,0.30234781]
[1729686601358,0.001648,66217.0,66216.0,0.30734781]
[1729686601582,0.001648,66217.0,66216.0,0.30234781]
[1729686602082,0.001648,66217.0,66216.0,0.32734781]
[1729686603205,0.001648,66217.0,66216.0,0.43234781]
[1729686603424,0.001648,66217.0,66216.0,0.57808586]
[1729686604631,0.001648,66217.0,66216.0,0.75327567]
[1729686606359,0.001648,66217.0,66216.0,0.000824]
[1729686606360,0.152666,66217.0,66216.0,0.000824]
[1729686606582,0.16673318,66217.0,66216.0,0.000824]
[1729686606807,0.47485643,66217.0,66216.0,0.000824]
[1729686607020,0.55090434,66217.0,66216.0,0.000824]
[1729686607255,0.5368383,66217.0,66216.0,0.000824]
[1729686607472,0.71202811,66217.0,66216.0,0.000824]
[1729686607703,0.97484616,66217.0,66216.0,0.000824]
[1729686607951,0.97484616,66217.0,66213.0,0.000824]
[1729686607952,0.238325,66214.0,66213.0,0.000824]
[1729686608168,0.238325,66214.0,66204.0,0.000824]
[1729686608169,0.40183481,66205.0,66204.0,0.000824]
[1729686608396,0.83046749,66205.0,66204.0,0.000824]
[1729686608622,0.4291173,66205.0,66204.0,0.000824]
[1729686609062,0.36779561,66205.0,66204.0,0.000824]
[1729686609294,0.13454425,66205.0,66204.0,0.000824]
[1729686609523,0.08966718,66205.0,66204.0,0.000824]
[1729686609988,0.24071218,66205.0,66204.0,0.000824]
[1729686610207,0.08966718,66205.0,66204.0,0.000824]
[1729686610425,0.24071218,66205.0,66204.0,0.000824]
[1729686610887,0.55681392,66205.0,66204.0,0.000824]
[1729686611163,0.64653636,66205.0,66204.0,0.000824]
[1729686611391,0.45847564,66205.0,66204.0,0.000824]
[1729686611621,0.30797183,66205.0,66204.0,0.000824]
[1729686611840,0.24071218,66205.0,66204.0,0.000824]
[1729686612269,0.28554388,66205.0,66204.0,0.000824]
[1729686613992,0.24071218,66205.0,66204.0,0.000824]
[1729686614429,0.08966718,66205.0,66204.0,0.000824]
[1729686614894,0.0756,66205.0,66204.0,0.000824]
[1729686615114,0.005,66208.0,66207.0,0.151041]
[1729686615335,0.005,66208.0,66207.0,0.30154481]
[1729686616430,0.005,66211.0,66207.0,0.15050381]
[1729686616656,0.001648,66217.0,66214.0,0.151025]
[1729686616657,0.005,66215.0,66214.0,0.151025]
[1729686616873,0.001648,66217.0,66216.0,0.15102]
[1729686617369,0.006648,66217.0,66216.0,0.15102]
[1729686617685,0.005,66214.0,66212.0,0.30206]
[1729686617905,0.005,66214.0,66206.0,0.17518981]
[1729686618133,0.001648,66217.0,66204.0,0.005824]
[1729686618134,0.152666,66217.0,66213.0,0.151027]
[1729686618391,0.005,66214.0,66213.0,0.151027]
[1729686619090,0.156045,66205.0,66194.0,0.15107]
[1729686619373,0.156045,66205.0,66193.0,0.302146]
[1729686619644,0.17003259,66205.0,66198.0,0.15106]
[1729686619903,0.156045,66205.0,66193.0,0.302144]
[1729686620155,0.01898759,66205.0,66200.0,0.58987403]
[1729686620408,0.17003259,66205.0,66200.0,0.43881803]
[1729686622069,0.156045,66205.0,66200.0,0.43881803]
[1729686622286,0.17002415,66205.0,66200.0,0.43881803]
[1729686623847,0.32052796,66205.0,66200.0,0.43881803]
[1729686624063,0.35687371,66205.0,66204.0,0.010824]
[1729686624285,0.156048,66204.0,66203.0,0.2436824]
[1729686624495,0.35687671,66204.0,66203.0,0.2436824]
[1729686625605,0.34289589,66204.0,66203.0,0.2436824]
[1729686625825,0.2063697,66204.0,66203.0,0.2436824]
[1729686626288,0.5096981,66204.0,66203.0,0.2436824]
[1729686626537,0.53206332,66204.0,66203.0,0.2436824]
[1729686627689,0.92995313,66204.0,66203.0,0.02632276]
[1729686627908,0.161144,66162.0,66159.0,0.00143497]
[1729686628138,0.44133381,66162.0,66159.0,0.00143497]
[1729686628368,0.30248748,66162.0,66159.0,0.00143497]
[1729686628591,0.67684532,66162.0,66159.0,0.00143497]
[1729686628809,0.82359252,66162.0,66159.0,0.00143497]
[1729686629070,0.81413887,66162.0,66154.0,5.271e-05]
[1729686629291,0.005,66131.0,66123.0,0.1663462]
[1729686629524,0.005,66135.0,66130.0,0.17518981]
[1729686629754,0.005,66137.0,66124.0,0.005]
[1729686629972,0.01397826,66141.0,66133.0,0.17518981]
[1729686630249,0.005,66141.0,66133.0,0.17518981]
[1729686630470,0.005,66141.0,66127.0,0.302447]
[1729686630471,0.01391013,66140.0,66127.0,0.18018981]
[1729686630691,0.005,66141.0,66134.0,0.151206]
[1729686630916,0.005,66141.0,66131.0,0.151212]
[1729686631145,0.01391045,66140.0,66129.0,0.002]
[1729686631376,0.005,66129.0,66123.0,0.1663462]
[1729686631598,0.151225,66127.0,66123.0,0.1663462]
[1729686631816,0.302445,66128.0,66123.0,0.1663462]
[1729686632046,0.151231,66124.0,66123.0,0.0955]
[1729686632266,0.151231,66124.0,66112.0,0.00011386]
[1729686632267,0.151237,66121.0,66112.0,0.00011386]
[1729686632761,0.0138958,66121.0,66114.0,0.17518981]
[1729686632963,0.0138958,66121.0,66120.0,0.43885842]
[1729686633205,0.005,66127.0,66120.0,0.43885842]
[1729686633206,0.02220772,66127.0,66120.0,0.43885842]
[1729686633423,0.005,66128.0,66126.0,0.17518981]
[1729686633654,0.22606022,66130.0,66126.0,0.17518981]
[1729686633655,0.005,66129.0,66127.0,0.15050381]
[1729686633882,0.302399,66138.0,66127.0,0.15050381]
[1729686633883,0.005,66133.0,66128.0,0.094]
[1729686634122,0.005,66133.0,66130.0,0.17518981]
[1729686634338,0.151212,66132.0,66128.0,0.094]
[1729686634560,0.005,66133.0,66128.0,0.094]
[1729686634784,0.156211,66133.0,66128.0,0.094]
[1729686634994,0.005,66133.0,66128.0,0.094]
[1729686635219,0.005,66134.0,66131.0,0.17518981]
[1729686635440,0.23551727,66139.0,66134.0,0.151207]
[1729686635668,0.19688403,66139.0,66137.0,0.17518981]
[1729686635896,0.19688403,66139.0,66138.0,0.15050381]
[1729686636349,0.005,66141.0,66132.0,0.0761]
[1729686636617,0.23106022,66141.0,66135.0,0.17518981]
[1729686636847,0.22606022,66141.0,66135.0,0.32569362]
[1729686637070,0.23106022,66141.0,66136.0,0.00647017]
[1729686637538,0.23106022,66141.0,66136.0,0.18165998]
[1729686637758,0.005,66141.0,66136.0,0.18165998]
[1729686637973,0.005,66141.0,66140.0,0.17518981]
[1729686638187,0.005,66141.0,66140.0,0.33274159]
[1729686638858,0.02313665,66142.0,66140.0,0.33274159]
[1729686639073,0.02313665,66142.0,66141.0,0.15352733]
[1729686639287,0.02313665,66142.0,66141.0,0.15050381]
[1729686639497,0.02313665,66142.0,66141.0,0.21002568]
[1729686639921,0.02313665,66142.0,66141.0,0.36121768]
[1729686640135,0.02313665,66142.0,66141.0,0.21002568]
[1729686641258,0.02313665,66142.0,66141.0,0.38421768]
[1729686641490,0.02313665,66142.0,66141.0,0.47591768]
[1729686642369,0.02313665,66142.0,66141.0,0.47791768]
[1729686642600,0.02313665,66142.0,66141.0,0.47591768]
[1729686643448,0.02313665,66142.0,66141.0,0.47791768]
[1729686643656,0.02313665,66142.0,66141.0,0.47591768]
[1729686643862,0.02313665,66142.0,66141.0,0.40044158]
[1729686644083,0.22606022,66148.0,66143.0,0.151187]
[1729686644293,0.22606022,66148.0,66147.0,0.17518981]
[1729686644720,0.005,66150.0,66147.0,0.18218793]
[1729686644935,0.151176,66148.0,66147.0,0.18218793]
[1729686645403,0.005,66150.0,66147.0,0.18218793]
[1729686645659,0.151174,66149.0,66147.0,0.18218793]
[1729686645861,0.156171,66150.0,66147.0,0.18218793]
[1729686646077,0.005,66150.0,66147.0,0.18218793]
[1729686647140,0.005,66150.0,66147.0,0.00699812]
[1729686647572,0.005,66150.0,66148.0,0.00699808]
[1729686647783,0.156172,66150.0,66144.0,0.15050381]
[1729686648034,0.156172,66150.0,66145.0,0.00699819]
[1729686648035,0.005,66150.0,66145.0,0.00699819]
[1729686648238,0.005,66150.0,66145.0,0.157502]
[1729686648439,0.156173,66150.0,66145.0,0.157502]
[1729686648857,0.005,66150.0,66145.0,0.157502]
[1729686649334,0.151173,66149.0,66145.0,0.157502]
[1729686649544,0.151176,66148.0,66145.0,0.157502]
[1729686649757,0.01388852,66149.0,66145.0,0.308683]
[1729686649961,0.01388852,66148.0,66147.0,0.32636781]
[1729686650168,0.01388852,66148.0,66147.0,0.15750915]
[1729686650391,0.01388852,66148.0,66147.0,0.00700534]
[1729686650392,0.16506452,66148.0,66147.0,0.00700534]
[1729686650621,0.16506452,66148.0,66128.0,0.002]
[1729686650622,0.30237,66144.0,66130.0,0.0965]
[1729686650869,0.30237,66144.0,66124.0,0.302458]
[1729686650870,0.005,66128.0,66124.0,0.17518981]
[1729686651097,0.005,66139.0,66127.0,0.302445]
[1729686651311,0.07810068,66142.0,66128.0,0.17972403]
[1729686651312,0.23106022,66136.0,66128.0,0.17972403]
[1729686651525,0.23106022,66136.0,66131.0,0.151213]
[1729686651526,0.005,66134.0,66131.0,0.151213]
[1729686653104,0.005,66138.0,66137.0,0.32639081]
[1729686653344,0.01893159,66138.0,66137.0,0.32639081]
[1729686653555,0.01893159,66138.0,66137.0,0.17518981]
[1729686655047,0.01393159,66138.0,66137.0,0.17518981]
[1729686655265,0.01893159,66138.0,66137.0,0.17518981]
[1729686655487,0.005,66138.0,66134.0,0.15050381]
[1729686655707,0.005,66138.0,66137.0,0.17518981]
[1729686655985,0.01897019,66138.0,66137.0,0.17518981]
[1729686656190,0.01897019,66138.0,66134.0,0.15050381]
[1729686656402,0.03632249,66137.0,66136.0,0.151201]
[1729686656613,0.00310714,66144.0,66137.0,0.1512]
[1729686656820,0.00310714,66146.0,66136.0,0.32569362]
[1729686657048,0.453557,66144.0,66138.0,0.151198]
[1729686657256,0.22606022,66139.0,66138.0,0.151198]
[1729686657472,0.151188,66143.0,66137.0,0.151199]
[1729686657693,0.00310714,66146.0,66136.0,0.32569362]
[1729686657901,0.302366,66145.0,66136.0,0.32569362]
[1729686658126,0.30234,66151.0,66136.0,0.32569362]
[1729686658127,0.005,66158.0,66140.0,0.35037962]
[1729686658373,0.005,66169.0,66140.0,0.35037962]
[1729686658374,0.22606022,66157.0,66156.0,0.151157]
[1729686658609,0.22606022,66157.0,66156.0,0.153157]
[1729686658818,0.22606022,66167.0,66166.0,0.151135]
[1729686659241,0.22606022,66174.0,66166.0,0.15050381]
[1729686659456,0.22606022,66174.0,66171.0,0.17518981]
[1729686659684,0.22606022,66188.0,66172.0,0.15050381]
[1729686659916,0.22606022,66180.0,66178.0,0.17518981]
[1729686660127,0.00310714,66187.0,66178.0,0.17518981]
[1729686660341,0.15109,66186.0,66179.0,0.151104]
[1729686660550,0.15109,66186.0,66172.0,0.15050381]
[1729686660551,0.151097,66183.0,66180.0,0.17518981]
[1729686660759,0.151097,66183.0,66172.0,0.15050381]
[1729686660760,0.151097,66183.0,66175.0,0.17518981]
[1729686660983,0.00310714,66185.0,66178.0,0.302215]
[1729686661193,0.00310714,66186.0,66178.0,0.09301456]
[1729686661415,0.005,66181.0,66167.0,0.17518981]
[1729686661630,0.302206,66180.0,66173.0,0.22606022]
[1729686661842,0.151109,66178.0,66172.0,0.151119]
[1729686662053,0.00310714,66179.0,66174.0,0.302229]
[1729686662279,0.00310714,66179.0,66174.0,0.151115]
[1729686662549,0.00310714,66179.0,66177.0,0.151109]
[1729686662766,0.005,66186.0,66178.0,0.17518981]
[1729686662981,0.00310714,66185.0,66178.0,0.17518981]
[1729686663202,0.00310714,66185.0,66127.0,0.2736478]
[1729686663203,0.005,66167.0,66163.0,0.37720122]
[1729686663421,0.00310714,66167.0,66163.0,0.22606022]
[1729686663646,0.17518981,66170.0,66161.0,0.302291]
[1729686664112,0.17518981,66170.0,66158.0,0.002]
[1729686664316,0.17518981,66170.0,66156.0,0.002]
[1729686664520,0.17518981,66170.0,66157.0,0.19042137]
[1729686664731,0.22506022,66169.0,66165.0,0.151136]
[1729686664946,0.22506022,66169.0,66158.0,0.302306]
[1729686665163,0.17518981,66170.0,66157.0,0.19042137]
[1729686665164,0.17518981,66170.0,66162.0,0.302288]
[1729686665370,0.17518981,66170.0,66162.0,0.15050381]
[1729686665579,0.17518981,66170.0,66169.0,0.151128]
[1729686665799,0.17418981,66170.0,66165.0,0.302274]
[1729686666003,0.17418981,66170.0,66163.0,0.04528008]
[1729686666217,0.17418981,66170.0,66162.0,0.15050381]
[1729686666438,0.17729695,66170.0,66169.0,0.151128]
[1729686666655,0.17418981,66170.0,66162.0,0.15050381]
[1729686666878,0.17518981,66165.0,66153.0,0.22606022]
[1729686667096,0.17518981,66160.0,66153.0,0.22606022]
[1729686667330,0.17518981,66155.0,66154.0,0.151162]
[1729686667518,0.17518981,66155.0,66150.0,0.0788]
[1729686667732,0.17518981,66155.0,66147.0,0.302353]
[1729686667942,0.17518981,66155.0,66149.0,0.24480381]
[1729686668162,0.17518981,66155.0,66150.0,0.151171]
[1729686668379,0.151183,66145.0,66141.0,0.151191]
[1729686668631,0.17518981,66154.0,66142.0,0.17509291]
[1729686668890,0.22606022,66153.0,66144.0,0.30237]
[1729686669102,0.38033336,66153.0,66147.0,0.151177]
[1729686669321,0.005,66147.0,66142.0,0.302379]
[1729686669535,0.005,66147.0,66142.0,0.31928993]
[1729686669751,0.00310714,66149.0,66148.0,0.151176]
[1729686669972,0.005,66152.0,66146.0,0.15118]
[1729686669973,0.00310714,66151.0,66146.0,0.15118]
[1729686670217,0.005,66145.0,66144.0,0.151184]
[1729686671392,0.22606022,66156.0,66145.0,0.0789]
[1729686671608,0.22606022,66147.0,66146.0,0.15050381]